[Event "*** Titled Tuesday Blitz"]
[Site "Chess.com"]
[Date "2020.05.19"]
[Round "2"]
[White "Oleksandr_Bortnyk"]
[Black "Chess_Boxer123"]
[Result "1-0"]
[WhiteElo "2994"]
[BlackElo "2571"]
[TimeControl "180+1"]
[EndTime "12:18:26 PDT"]
[Termination "Oleksandr_Bortnyk won by resignation"]

1. e4 {[%clk 0:03:00.9]} 1... c5 {[%clk 0:02:59.4]} 2. Be2 {[%clk 0:03:00.2]}
2... g6 {[%clk 0:02:58.7]} 3. f4 {[%clk 0:03:00]} 3... Bg7 {[%clk 0:02:58.8]} 4.
Nf3 {[%clk 0:03:00.6]} 4... Nc6 {[%clk 0:02:59.3]} 5. d3 {[%clk 0:03:00.7]} 5...
e6 {[%clk 0:02:57.6]} 6. O-O {[%clk 0:03:00.8]} 6... d5 {[%clk 0:02:58]} 7. c3
{[%clk 0:03:01]} 7... Nge7 {[%clk 0:02:57.8]} 8. Be3 {[%clk 0:02:54.3]} 8... b6
{[%clk 0:02:56.1]} 9. e5 {[%clk 0:02:46.1]} 9... O-O {[%clk 0:02:51.6]} 10. d4
{[%clk 0:02:44.7]} 10... Nf5 {[%clk 0:02:48.7]} 11. Bf2 {[%clk 0:02:44.7]} 11...
cxd4 {[%clk 0:02:49.3]} 12. cxd4 {[%clk 0:02:44.6]} 12... h5 {[%clk 0:02:49.3]}
13. Nc3 {[%clk 0:02:30.5]} 13... Bb7 {[%clk 0:02:47.5]} 14. Bd3 {[%clk
0:02:18.1]} 14... Nce7 {[%clk 0:02:41.7]} 15. h3 {[%clk 0:02:01.5]} 15... Nh6
{[%clk 0:02:33.8]} 16. Ng5 {[%clk 0:01:33.6]} 16... Nc6 {[%clk 0:02:25.6]} 17.
g4 {[%clk 0:01:22.2]} 17... hxg4 {[%clk 0:02:26.5]} 18. hxg4 {[%clk 0:01:23.1]}
18... Qe7 {[%clk 0:02:10.8]} 19. Re1 {[%clk 0:01:05.3]} 19... a6 {[%clk
0:02:01.5]} 20. Qf3 {[%clk 0:00:45.8]} 20... b5 {[%clk 0:01:42]} 21. a3 {[%clk
0:00:41.5]} 21... Rae8 {[%clk 0:01:40.2]} 22. Qh3 {[%clk 0:00:28.5]} 22... f5
{[%clk 0:01:09]} 23. gxf5 {[%clk 0:00:27.4]} 23... gxf5 {[%clk 0:01:02.9]} 24.
Ne2 {[%clk 0:00:18.6]} 24... Nd8 {[%clk 0:01:02.3]} 25. Bh4 {[%clk 0:00:16.6]}
25... Qd7 {[%clk 0:00:57.5]} 26. Ng3 {[%clk 0:00:16.4]} 26... Ndf7 {[%clk
0:00:56.9]} 27. Nh5 {[%clk 0:00:16.2]} 27... Nxg5 {[%clk 0:00:56.6]} 28. Bxg5
{[%clk 0:00:15.8]} 28... Ng4 {[%clk 0:00:56.7]} 29. Kg2 {[%clk 0:00:14.8]} 29...
Qf7 {[%clk 0:00:44.8]} 30. Rh1 {[%clk 0:00:14.2]} 30... Qg6 {[%clk 0:00:38.7]}
31. Kf3 {[%clk 0:00:14.4]} 31... Rc8 {[%clk 0:00:37.7]} 32. Ke2 {[%clk
0:00:13.1]} 32... Qh7 {[%clk 0:00:23.8]} 33. Qxg4 {[%clk 0:00:04.3]} 33... fxg4
{[%clk 0:00:23.7]} 34. Bxh7+ {[%clk 0:00:05.2]} 34... Kxh7 {[%clk 0:00:24.6]}
35. Nxg7+ {[%clk 0:00:05.9]} 35... Kxg7 {[%clk 0:00:25]} 36. Bh6+ {[%clk
0:00:06.8]} 36... Kg6 {[%clk 0:00:25.4]} 37. Bxf8 {[%clk 0:00:07.7]} 37... Rxf8
{[%clk 0:00:25.9]} 38. Ke3 {[%clk 0:00:08.4]} 38... Rc8 {[%clk 0:00:19.9]} 39.
Rag1 {[%clk 0:00:08.7]} 1-0

[Event "*** Titled Tuesday Blitz"]
[Site "Chess.com"]
[Date "2020.05.19"]
[Round "2"]
[White "Tsyhanchuk_Stanislav"]
[Black "Raja3401"]
[Result "0-1"]
[WhiteElo "2481"]
[BlackElo "2718"]
[TimeControl "180+1"]
[EndTime "12:18:27 PDT"]
[Termination "Raja3401 won on time"]

1. e4 {[%clk 0:03:00.9]} 1... c5 {[%clk 0:03:00.2]} 2. Nf3 {[%clk 0:03:01.1]}
2... d6 {[%clk 0:03:00.4]} 3. d4 {[%clk 0:03:01.6]} 3... cxd4 {[%clk 0:03:00.6]}
4. Nxd4 {[%clk 0:03:02.4]} 4... Nf6 {[%clk 0:02:59.9]} 5. Nc3 {[%clk 0:03:02.7]}
5... a6 {[%clk 0:03:00.2]} 6. Bg5 {[%clk 0:03:03.2]} 6... e6 {[%clk 0:02:58.3]}
7. f4 {[%clk 0:03:03.6]} 7... Qb6 {[%clk 0:02:57.4]} 8. Qd2 {[%clk 0:03:02.9]}
8... Qxb2 {[%clk 0:02:57.2]} 9. Rb1 {[%clk 0:03:03.5]} 9... Qa3 {[%clk
0:02:57.5]} 10. e5 {[%clk 0:03:02]} 10... dxe5 {[%clk 0:02:57.4]} 11. fxe5
{[%clk 0:03:02.9]} 11... h6 {[%clk 0:02:57.9]} 12. Bh4 {[%clk 0:03:02.5]} 12...
Nfd7 {[%clk 0:02:57.4]} 13. Bg3 {[%clk 0:03:01.1]} 13... Qa5 {[%clk 0:02:35.3]}
14. Be2 {[%clk 0:02:55.9]} 14... Bb4 {[%clk 0:02:19.2]} 15. Rxb4 {[%clk
0:02:39]} 15... Qxb4 {[%clk 0:02:18.3]} 16. O-O {[%clk 0:02:32.8]} 16... O-O
{[%clk 0:02:15.8]} 17. Rf4 {[%clk 0:02:26.6]} 17... Nxe5 {[%clk 0:02:08.4]} 18.
Rh4 {[%clk 0:01:51.2]} 18... Ng6 {[%clk 0:02:01.4]} 19. Rg4 {[%clk 0:01:42.5]}
19... e5 {[%clk 0:02:01]} 20. Nf5 {[%clk 0:01:29.7]} 20... Qb6+ {[%clk
0:01:36.7]} 21. Bf2 {[%clk 0:01:29.4]} 21... Qd8 {[%clk 0:01:36.6]} 22. Nd6
{[%clk 0:01:06.2]} 22... Bxg4 {[%clk 0:01:32.3]} 23. Bxg4 {[%clk 0:01:07.1]}
23... Nc6 {[%clk 0:01:28.2]} 24. Bc5 {[%clk 0:00:51.4]} 24... Qg5 {[%clk
0:01:12]} 25. Qd1 {[%clk 0:00:45]} 25... Rad8 {[%clk 0:01:01.7]} 26. Nce4 {[%clk
0:00:44.2]} 26... Rxd6 {[%clk 0:00:49.1]} 27. Nxd6 {[%clk 0:00:20.5]} 27... Nd4
{[%clk 0:00:43.7]} 28. Kh1 {[%clk 0:00:13]} 28... Nf4 {[%clk 0:00:39.8]} 29. Ne4
{[%clk 0:00:12.1]} 29... Qg6 {[%clk 0:00:37.1]} 30. Bxf8 {[%clk 0:00:11.9]}
30... Qxe4 {[%clk 0:00:36.9]} 31. Bf3 {[%clk 0:00:07.1]} 31... Nxf3 {[%clk
0:00:36.6]} 32. gxf3 {[%clk 0:00:07.4]} 32... Qg6 {[%clk 0:00:32.1]} 33. Qd2
{[%clk 0:00:04]} 33... Qc6 {[%clk 0:00:19.2]} 34. Qe3 {[%clk 0:00:01]} 34...
Kxf8 {[%clk 0:00:18.1]} 0-1

[Event "*** Titled Tuesday Blitz"]
[Site "Chess.com"]
[Date "2020.05.19"]
[Round "2"]
[White "SGchess01"]
[Black "CrushingKings"]
[Result "0-1"]
[WhiteElo "2727"]
[BlackElo "2510"]
[TimeControl "180+1"]
[EndTime "12:18:28 PDT"]
[Termination "CrushingKings won by checkmate"]

1. e4 {[%clk 0:03:00.9]} 1... c6 {[%clk 0:02:55.8]} 2. d4 {[%clk 0:03:00.3]}
2... g6 {[%clk 0:02:56.5]} 3. Nf3 {[%clk 0:02:56.3]} 3... Bg7 {[%clk 0:02:56.9]}
4. c4 {[%clk 0:02:54.6]} 4... d5 {[%clk 0:02:55.9]} 5. e5 {[%clk 0:02:52.7]}
5... Bg4 {[%clk 0:02:52.3]} 6. Nc3 {[%clk 0:02:52.5]} 6... e6 {[%clk 0:02:51]}
7. cxd5 {[%clk 0:02:46.9]} 7... exd5 {[%clk 0:02:49.3]} 8. h3 {[%clk 0:02:42.5]}
8... Bxf3 {[%clk 0:02:42.7]} 9. Qxf3 {[%clk 0:02:43.4]} 9... Nd7 {[%clk
0:02:39.9]} 10. h4 {[%clk 0:02:41.9]} 10... h5 {[%clk 0:02:32]} 11. Bd3 {[%clk
0:02:39.4]} 11... Nf8 {[%clk 0:02:31.5]} 12. Be3 {[%clk 0:02:29]} 12... Qd7
{[%clk 0:02:30.5]} 13. O-O-O {[%clk 0:02:28.6]} 13... O-O-O {[%clk 0:02:26.8]}
14. Kb1 {[%clk 0:02:28.5]} 14... Ne6 {[%clk 0:02:19.8]} 15. g3 {[%clk
0:02:28.2]} 15... Kb8 {[%clk 0:02:17.5]} 16. Bf1 {[%clk 0:02:27.6]} 16... Bh6
{[%clk 0:02:02.2]} 17. Bh3 {[%clk 0:02:25.9]} 17... Bxe3 {[%clk 0:02:02.1]} 18.
fxe3 {[%clk 0:02:26.8]} 18... Nh6 {[%clk 0:02:01.1]} 19. Rhf1 {[%clk 0:02:26.2]}
19... Rdf8 {[%clk 0:01:36.8]} 20. e4 {[%clk 0:02:06.1]} 20... Rd8 {[%clk
0:01:01.6]} 21. exd5 {[%clk 0:02:04.2]} 21... cxd5 {[%clk 0:01:02.5]} 22. Qe3
{[%clk 0:01:52.6]} 22... Ng4 {[%clk 0:00:59]} 23. Bxg4 {[%clk 0:01:52.3]} 23...
hxg4 {[%clk 0:00:59.9]} 24. Rf6 {[%clk 0:01:52.5]} 24... Ng7 {[%clk 0:00:58.1]}
25. Rdf1 {[%clk 0:01:26.3]} 25... Nf5 {[%clk 0:00:57.2]} 26. Qf4 {[%clk
0:01:26.4]} 26... Qe7 {[%clk 0:00:52.1]} 27. Nb5 {[%clk 0:01:05.6]} 27... a6
{[%clk 0:00:35.6]} 28. Rxf7 {[%clk 0:01:00.6]} 28... Qb4 {[%clk 0:00:29]} 29.
e6+ {[%clk 0:00:57.1]} 29... Ka8 {[%clk 0:00:27.1]} 30. Nc7+ {[%clk 0:00:42.9]}
30... Ka7 {[%clk 0:00:27.1]} 31. a3 {[%clk 0:00:43.3]} 31... Qb6 {[%clk
0:00:21.4]} 32. e7 {[%clk 0:00:40.4]} 32... Rc8 {[%clk 0:00:15.7]} 33. Nxd5
{[%clk 0:00:35.1]} 33... Qe6 {[%clk 0:00:14.3]} 34. Rxf5 {[%clk 0:00:29.1]}
34... gxf5 {[%clk 0:00:13.8]} 35. Qxf5 {[%clk 0:00:29.7]} 35... Qe2 {[%clk
0:00:12.9]} 36. Rf2 {[%clk 0:00:21.8]} 36... Qd1+ {[%clk 0:00:10]} 37. Ka2
{[%clk 0:00:21.9]} 37... Rc1 {[%clk 0:00:07.8]} 38. b3 {[%clk 0:00:19.8]} 38...
Ra1+ {[%clk 0:00:07]} 39. Kb2 {[%clk 0:00:19.8]} 39... Qc1# {[%clk 0:00:07.6]}
0-1

[Event "*** Titled Tuesday Blitz"]
[Site "Chess.com"]
[Date "2020.05.19"]
[Round "2"]
[White "LostaBet95"]
[Black "Dare-Dare"]
[Result "1-0"]
[WhiteElo "2538"]
[BlackElo "2229"]
[TimeControl "180+1"]
[EndTime "12:18:28 PDT"]
[Termination "LostaBet95 won on time"]

1. e4 {[%clk 0:03:00.9]} 1... e6 {[%clk 0:02:59]} 2. d4 {[%clk 0:03:00.8]} 2...
d5 {[%clk 0:02:59.7]} 3. Nc3 {[%clk 0:03:01.3]} 3... Bb4 {[%clk 0:02:59.5]} 4.
e5 {[%clk 0:03:01.7]} 4... c5 {[%clk 0:02:58.8]} 5. a3 {[%clk 0:03:02.1]} 5...
Bxc3+ {[%clk 0:02:59.5]} 6. bxc3 {[%clk 0:03:03]} 6... Qa5 {[%clk 0:03:00]} 7.
Bd2 {[%clk 0:03:02.6]} 7... Ne7 {[%clk 0:03:00.7]} 8. Qg4 {[%clk 0:03:03.1]}
8... O-O {[%clk 0:03:01]} 9. Bd3 {[%clk 0:03:00.9]} 9... Nbc6 {[%clk 0:03:01.3]}
10. Nf3 {[%clk 0:03:01.2]} 10... f5 {[%clk 0:03:01.6]} 11. exf6 {[%clk
0:03:00.3]} 11... Rxf6 {[%clk 0:03:02]} 12. Qh5 {[%clk 0:03:00.7]} 12... Nf5
{[%clk 0:03:01.3]} 13. c4 {[%clk 0:02:59.7]} 13... Qa4 {[%clk 0:02:57.1]} 14.
cxd5 {[%clk 0:02:41.3]} 14... exd5 {[%clk 0:02:56.7]} 15. dxc5 {[%clk 0:02:34]}
15... Bd7 {[%clk 0:02:48.8]} 16. O-O {[%clk 0:02:33.5]} 16... g6 {[%clk
0:02:33.2]} 17. Qg5 {[%clk 0:02:26.5]} 17... Raf8 {[%clk 0:02:32.4]} 18. Bc3
{[%clk 0:02:22.4]} 18... d4 {[%clk 0:02:21.3]} 19. Bd2 {[%clk 0:02:22.3]} 19...
h6 {[%clk 0:02:13.9]} 20. Qg4 {[%clk 0:02:14.2]} 20... Bc8 {[%clk 0:01:49.7]}
21. Qh3 {[%clk 0:01:57.7]} 21... h5 {[%clk 0:00:40.6]} 22. Bg5 {[%clk
0:01:18.1]} 22... Ne3 {[%clk 0:00:24.2]} 23. Qh4 {[%clk 0:01:14.3]} 23... Nxg2
{[%clk 0:00:19.3]} 24. Kxg2 {[%clk 0:01:02.8]} 24... Rxf3 {[%clk 0:00:18.7]} 25.
Bxg6 {[%clk 0:00:41.3]} 25... Rh3 {[%clk 0:00:11.3]} 26. Qe4 {[%clk 0:00:36.2]}
26... Bg4 {[%clk 0:00:11]} 27. f3 {[%clk 0:00:25.7]} 27... Bxf3+ {[%clk
0:00:09]} 28. Rxf3 {[%clk 0:00:25.2]} 28... Rhxf3 {[%clk 0:00:09.3]} 29. Bh4
{[%clk 0:00:15.6]} 29... Qc4 {[%clk 0:00:07.9]} 30. Bxh5 {[%clk 0:00:10.9]}
30... R3f6 {[%clk 0:00:01.4]} 31. Bxf6 {[%clk 0:00:10.1]} 31... Rxf6 {[%clk
0:00:02.3]} 32. Re1 {[%clk 0:00:08.5]} 32... Kg7 {[%clk 0:00:01.7]} 33. Qg4+
{[%clk 0:00:07.8]} 33... Kh6 {[%clk 0:00:02.1]} 34. Be8 {[%clk 0:00:06]} 34...
Qxc2+ {[%clk 0:00:02]} 35. Re2 {[%clk 0:00:06]} 1-0

[Event "*** Titled Tuesday Blitz"]
[Site "Chess.com"]
[Date "2020.05.19"]
[Round "2"]
[White "DortmundCity"]
[Black "GMALMEIDA"]
[Result "0-1"]
[WhiteElo "2470"]
[BlackElo "2696"]
[TimeControl "180+1"]
[EndTime "12:18:30 PDT"]
[Termination "GMALMEIDA won by resignation"]

1. e4 {[%clk 0:02:59]} 1... d6 {[%clk 0:02:59.2]} 2. d4 {[%clk 0:02:57.1]} 2...
Nf6 {[%clk 0:02:58.7]} 3. Nc3 {[%clk 0:02:57.6]} 3... c6 {[%clk 0:02:58.7]} 4.
f4 {[%clk 0:02:57.5]} 4... Qa5 {[%clk 0:02:57.5]} 5. Bd3 {[%clk 0:02:54.7]} 5...
e5 {[%clk 0:02:56.8]} 6. dxe5 {[%clk 0:02:50.3]} 6... dxe5 {[%clk 0:02:56.9]} 7.
Nf3 {[%clk 0:02:47.2]} 7... Bg4 {[%clk 0:02:55.7]} 8. fxe5 {[%clk 0:02:44.8]}
8... Nfd7 {[%clk 0:02:47.2]} 9. h3 {[%clk 0:02:41.1]} 9... Bxf3 {[%clk
0:02:46.5]} 10. Qxf3 {[%clk 0:02:34]} 10... Nxe5 {[%clk 0:02:46.4]} 11. Qg3
{[%clk 0:02:31]} 11... g6 {[%clk 0:02:41.1]} 12. O-O {[%clk 0:02:18.3]} 12...
Bg7 {[%clk 0:02:40.5]} 13. Qh4 {[%clk 0:02:11.8]} 13... O-O {[%clk 0:02:38.3]}
14. Bh6 {[%clk 0:02:11.4]} 14... Nbd7 {[%clk 0:02:37.6]} 15. Bxg7 {[%clk
0:02:10.8]} 15... Kxg7 {[%clk 0:02:37.5]} 16. Kh1 {[%clk 0:02:07]} 16... Qd8
{[%clk 0:02:34.9]} 17. Qg3 {[%clk 0:02:04.7]} 17... Qe7 {[%clk 0:02:32.1]} 18.
Rad1 {[%clk 0:02:03.8]} 18... Nc5 {[%clk 0:02:31.1]} 19. Be2 {[%clk 0:02:02.2]}
19... a5 {[%clk 0:02:28.7]} 20. a3 {[%clk 0:01:55]} 20... b5 {[%clk 0:02:23.2]}
21. Bxb5 {[%clk 0:01:31.4]} 21... cxb5 {[%clk 0:02:09.5]} 22. Nd5 {[%clk
0:01:30.6]} 22... Qd6 {[%clk 0:01:40.1]} 23. Nf4 {[%clk 0:01:04.2]} 23... Qb8
{[%clk 0:01:23.4]} 24. Nh5+ {[%clk 0:01:04.2]} 24... Kh8 {[%clk 0:01:20.1]} 25.
Nf6 {[%clk 0:01:03.8]} 25... Ra6 {[%clk 0:01:12.5]} 26. Qg5 {[%clk 0:00:49.1]}
26... Rxf6 {[%clk 0:01:06.1]} 27. Qxf6+ {[%clk 0:00:50]} 27... Kg8 {[%clk
0:01:05.8]} 28. Rd5 {[%clk 0:00:40.6]} 28... Ncd7 {[%clk 0:00:35.6]} 29. Qa6
{[%clk 0:00:40.5]} 29... Qc7 {[%clk 0:00:31.9]} 30. Qxb5 {[%clk 0:00:32]} 30...
Re8 {[%clk 0:00:29.6]} 31. Qxa5 {[%clk 0:00:21.9]} 31... Qxc2 {[%clk 0:00:28.2]}
32. Rfd1 {[%clk 0:00:16.9]} 32... Nf6 {[%clk 0:00:25.5]} 33. R1d2 {[%clk
0:00:11.5]} 33... Qb1+ {[%clk 0:00:24]} 34. Rd1 {[%clk 0:00:09.2]} 34... Qxe4
{[%clk 0:00:23.8]} 35. R5d2 {[%clk 0:00:06.5]} 35... Nh5 {[%clk 0:00:22.5]} 36.
Qc3 {[%clk 0:00:04.9]} 36... Qf4 {[%clk 0:00:20.9]} 37. Rd4 {[%clk 0:00:02.6]}
37... Ng3+ {[%clk 0:00:20.5]} 38. Kg1 {[%clk 0:00:03]} 38... Ne2+ {[%clk
0:00:20.2]} 0-1

[Event "*** Titled Tuesday Blitz"]
[Site "Chess.com"]
[Date "2020.05.19"]
[Round "2"]
[White "Alomaterapia"]
[Black "Kobalia"]
[Result "0-1"]
[WhiteElo "2511"]
[BlackElo "2803"]
[TimeControl "180+1"]
[EndTime "12:18:31 PDT"]
[Termination "Kobalia won on time"]

1. d4 {[%clk 0:03:00.9]} 1... Nf6 {[%clk 0:02:58.4]} 2. c4 {[%clk 0:03:00.6]}
2... g6 {[%clk 0:02:58.7]} 3. Nc3 {[%clk 0:03:00.5]} 3... Bg7 {[%clk 0:02:59.1]}
4. e4 {[%clk 0:02:59]} 4... O-O {[%clk 0:02:59.5]} 5. h3 {[%clk 0:02:53.7]} 5...
d6 {[%clk 0:02:56.9]} 6. Be3 {[%clk 0:02:52.7]} 6... Nbd7 {[%clk 0:02:55.4]} 7.
g4 {[%clk 0:02:51.6]} 7... e5 {[%clk 0:02:55.2]} 8. d5 {[%clk 0:02:51.7]} 8...
Nc5 {[%clk 0:02:55]} 9. f3 {[%clk 0:02:49.2]} 9... a5 {[%clk 0:02:52.5]} 10.
Nge2 {[%clk 0:02:43.8]} 10... c6 {[%clk 0:02:50]} 11. Ng3 {[%clk 0:02:43.3]}
11... a4 {[%clk 0:02:49.6]} 12. Qd2 {[%clk 0:02:33.4]} 12... Qa5 {[%clk
0:02:47.4]} 13. h4 {[%clk 0:02:23.1]} 13... Bxg4 {[%clk 0:02:35.1]} 14. fxg4
{[%clk 0:02:18.7]} 14... Nxg4 {[%clk 0:02:35.3]} 15. Bg1 {[%clk 0:01:58.6]}
15... f5 {[%clk 0:02:23]} 16. Be2 {[%clk 0:01:51.6]} 16... Bh6 {[%clk
0:02:19.4]} 17. Qc2 {[%clk 0:01:51.6]} 17... Ne3 {[%clk 0:02:04]} 18. Bxe3
{[%clk 0:01:51.4]} 18... Bxe3 {[%clk 0:02:04.1]} 19. exf5 {[%clk 0:01:51.7]}
19... a3 {[%clk 0:01:51.7]} 20. b4 {[%clk 0:01:41.4]} 20... Qxb4 {[%clk
0:01:47.9]} 21. Rb1 {[%clk 0:01:41.7]} 21... Qa5 {[%clk 0:01:45.8]} 22. h5
{[%clk 0:00:54.4]} 22... gxf5 {[%clk 0:01:43.6]} 23. Rh3 {[%clk 0:00:44]} 23...
f4 {[%clk 0:01:29.9]} 24. Nf5 {[%clk 0:00:41.3]} 24... Na4 {[%clk 0:01:08.5]}
25. Rxb7 {[%clk 0:00:26.9]} 25... Qxc3+ {[%clk 0:00:59.7]} 26. Qxc3 {[%clk
0:00:25.9]} 26... Nxc3 {[%clk 0:01:00.2]} 27. Ne7+ {[%clk 0:00:15.3]} 27... Kg7
{[%clk 0:00:45.7]} 28. dxc6 {[%clk 0:00:13.1]} 28... Kh6 {[%clk 0:00:41.9]} 29.
c7 {[%clk 0:00:12.3]} 29... e4 {[%clk 0:00:26.6]} 30. Bg4 {[%clk 0:00:12.2]}
30... Nxa2 {[%clk 0:00:22.4]} 31. c8=Q {[%clk 0:00:10.6]} 31... Raxc8 {[%clk
0:00:22.5]} 32. Bxc8 {[%clk 0:00:08.9]} 32... Nc3 {[%clk 0:00:21.5]} 33. Nf5+
{[%clk 0:00:06.5]} 33... Rxf5 {[%clk 0:00:19.6]} 34. Bxf5 {[%clk 0:00:06]} 34...
a2 {[%clk 0:00:20]} 35. Ra7 {[%clk 0:00:02.7]} 35... Bxa7 {[%clk 0:00:19]} 36.
Rxc3 {[%clk 0:00:02]} 36... a1=Q+ {[%clk 0:00:19]} 37. Kd2 {[%clk 0:00:02.9]}
37... Be3+ {[%clk 0:00:18]} 38. Kc2 {[%clk 0:00:03.3]} 38... Qa2+ {[%clk
0:00:18.3]} 0-1

[Event "*** Titled Tuesday Blitz"]
[Site "Chess.com"]
[Date "2020.05.19"]
[Round "2"]
[White "GasconJR"]
[Black "Arjun2002"]
[Result "0-1"]
[WhiteElo "2414"]
[BlackElo "2655"]
[TimeControl "180+1"]
[EndTime "12:18:31 PDT"]
[Termination "Arjun2002 won on time"]

1. d4 {[%clk 0:03:00.9]} 1... d5 {[%clk 0:02:59.1]} 2. c4 {[%clk 0:03:00.8]}
2... c6 {[%clk 0:02:59.5]} 3. Nf3 {[%clk 0:02:59.6]} 3... Nf6 {[%clk 0:02:59.1]}
4. Nc3 {[%clk 0:03:00.2]} 4... e6 {[%clk 0:02:58.8]} 5. g3 {[%clk 0:02:59.9]}
5... dxc4 {[%clk 0:02:56.9]} 6. Bg2 {[%clk 0:03:00]} 6... Nbd7 {[%clk
0:02:56.7]} 7. O-O {[%clk 0:02:59.9]} 7... b5 {[%clk 0:02:54.8]} 8. e4 {[%clk
0:02:59.6]} 8... Bb7 {[%clk 0:02:54.4]} 9. b3 {[%clk 0:02:49.4]} 9... b4 {[%clk
0:02:49.2]} 10. e5 {[%clk 0:02:49.1]} 10... Nd5 {[%clk 0:02:33.2]} 11. Ne4
{[%clk 0:02:47.3]} 11... c3 {[%clk 0:02:30]} 12. h4 {[%clk 0:02:31.4]} 12... h6
{[%clk 0:02:23.2]} 13. a3 {[%clk 0:02:14.9]} 13... a5 {[%clk 0:02:18]} 14. Re1
{[%clk 0:02:13.1]} 14... c5 {[%clk 0:02:04.1]} 15. Bf1 {[%clk 0:02:11.2]} 15...
Qb6 {[%clk 0:01:54.4]} 16. dxc5 {[%clk 0:01:43.6]} 16... Nxc5 {[%clk 0:01:43]}
17. axb4 {[%clk 0:01:41]} 17... axb4 {[%clk 0:01:38.2]} 18. Rxa8+ {[%clk
0:01:37.3]} 18... Bxa8 {[%clk 0:01:39.1]} 19. Nd6+ {[%clk 0:01:00.7]} 19... Bxd6
{[%clk 0:01:37.6]} 20. exd6 {[%clk 0:01:01.6]} 20... O-O {[%clk 0:01:27.6]} 21.
Qd4 {[%clk 0:00:07.2]} 21... Qxd6 {[%clk 0:01:22.8]} 22. Bf4 {[%clk 0:00:07.7]}
22... Qe7 {[%clk 0:01:09.9]} 23. Be5 {[%clk 0:00:04.5]} 23... f6 {[%clk
0:01:00.2]} 24. Bf4 {[%clk 0:00:05]} 24... Nxb3 {[%clk 0:00:55.9]} 25. Qc4
{[%clk 0:00:04.2]} 25... Nxf4 {[%clk 0:00:52]} 26. Qxf4 {[%clk 0:00:05.1]} 26...
Bxf3 {[%clk 0:00:43.8]} 27. Bc4 {[%clk 0:00:04.3]} 27... Nd2 {[%clk 0:00:21.7]}
28. Rxe6 {[%clk 0:00:02.4]} 28... Qf7 {[%clk 0:00:21.9]} 29. Rxf6 {[%clk
0:00:02.4]} 29... Nxc4 {[%clk 0:00:18.4]} 30. Rxf7 {[%clk 0:00:02.2]} 30... Rxf7
{[%clk 0:00:18.8]} 31. Qxc4 {[%clk 0:00:02.9]} 31... Bd1 {[%clk 0:00:13.7]} 32.
Kf1 {[%clk 0:00:02.3]} 32... c2 {[%clk 0:00:13.6]} 33. Ke1 {[%clk 0:00:02.9]}
33... b3 {[%clk 0:00:12.8]} 34. Qxb3 {[%clk 0:00:02.3]} 34... c1=Q {[%clk
0:00:12.8]} 0-1

[Event "*** Titled Tuesday Blitz"]
[Site "Chess.com"]
[Date "2020.05.19"]
[Round "2"]
[White "pirulillo"]
[Black "NormWeinstein"]
[Result "0-1"]
[WhiteElo "2239"]
[BlackElo "2454"]
[TimeControl "180+1"]
[EndTime "12:18:31 PDT"]
[Termination "NormWeinstein won by checkmate"]

1. e4 {[%clk 0:01:11.4]} 1... c5 {[%clk 0:02:56.4]} 2. Nf3 {[%clk 0:01:11.4]}
2... d6 {[%clk 0:02:56.9]} 3. d4 {[%clk 0:01:09.1]} 3... Nf6 {[%clk 0:02:57.1]}
4. Nc3 {[%clk 0:01:09]} 4... cxd4 {[%clk 0:02:57.2]} 5. Nxd4 {[%clk 0:01:09.9]}
5... Nc6 {[%clk 0:02:57.1]} 6. Bg5 {[%clk 0:01:08.2]} 6... Bd7 {[%clk
0:02:56.9]} 7. Bxf6 {[%clk 0:01:05.1]} 7... gxf6 {[%clk 0:02:55.4]} 8. Nb3
{[%clk 0:01:03.9]} 8... f5 {[%clk 0:02:53.3]} 9. Bd3 {[%clk 0:00:58.5]} 9...
fxe4 {[%clk 0:02:51]} 10. Nxe4 {[%clk 0:00:58]} 10... Bg7 {[%clk 0:02:49.8]} 11.
c3 {[%clk 0:00:56.8]} 11... Rc8 {[%clk 0:02:46.8]} 12. O-O {[%clk 0:00:56.3]}
12... Ne5 {[%clk 0:02:39.3]} 13. f4 {[%clk 0:00:51.4]} 13... Nxd3 {[%clk
0:02:38.3]} 14. Qxd3 {[%clk 0:00:50.4]} 14... Qb6+ {[%clk 0:02:22.7]} 15. Kh1
{[%clk 0:00:49.1]} 15... Bb5 {[%clk 0:02:22.5]} 16. Qg3 {[%clk 0:00:43.2]} 16...
Kf8 {[%clk 0:02:13.9]} 17. Rfe1 {[%clk 0:00:42]} 17... Bc6 {[%clk 0:02:07.2]}
18. Ng5 {[%clk 0:00:38]} 18... h6 {[%clk 0:01:57.7]} 19. Nf3 {[%clk 0:00:33]}
19... Rg8 {[%clk 0:01:55.7]} 20. Qh4 {[%clk 0:00:27.8]} 20... Rc7 {[%clk
0:01:37.7]} 21. Nbd4 {[%clk 0:00:25.5]} 21... Qc5 {[%clk 0:01:14]} 22. Nxc6
{[%clk 0:00:23.8]} 22... bxc6 {[%clk 0:01:10.6]} 23. Rad1 {[%clk 0:00:18.6]}
23... e6 {[%clk 0:00:53.3]} 24. Nd4 {[%clk 0:00:18.6]} 24... Rc8 {[%clk
0:00:27.3]} 25. Rxe6 {[%clk 0:00:17.5]} 25... Bxd4 {[%clk 0:00:20.4]} 26. cxd4
{[%clk 0:00:14.3]} 26... Qd5 {[%clk 0:00:13.8]} 27. Qxh6+ {[%clk 0:00:12.8]}
27... Rg7 {[%clk 0:00:11.7]} 28. Rf6 {[%clk 0:00:13.2]} 28... Re8 {[%clk
0:00:09.3]} 29. Rf1 {[%clk 0:00:11.6]} 29... Re2 {[%clk 0:00:08.4]} 30. Qh3
{[%clk 0:00:11.6]} 30... Rgxg2 {[%clk 0:00:05.8]} 31. Rxf7+ {[%clk 0:00:10.5]}
31... Kxf7 {[%clk 0:00:05.7]} 32. Qf3 {[%clk 0:00:10.9]} 32... Qxf3 {[%clk
0:00:04.8]} 33. Rxf3 {[%clk 0:00:11.8]} 33... Rxb2 {[%clk 0:00:04.7]} 34. Rf1
{[%clk 0:00:12]} 34... Rxh2+ {[%clk 0:00:04.8]} 35. Kg1 {[%clk 0:00:11.7]} 35...
Rbg2# {[%clk 0:00:05.4]} 0-1